Cogmind - Beta 13 @@@ ROGUE MODE // 2024.05.16 @ 22:18:50 Player: Bits_and_Bytes Result: Destroyed by 93-FDI(R) with Subdweller Machine Gun Performance ------------- Evolutions (0) 0 Regions Visited (2) 400 Robots Destroyed (26) 130 Value Destroyed (459) 459 Prototype IDs (0) 0 Alien Tech Used (0) 0 Bonus (0) 0 TOTAL SCORE: 989 Bonus ------- None Cogmind --------- Core Integrity 0/250 Matter 272/300 Energy 125/125 System Corruption 0% Temperature Cool (0) Movement Core (750) Ox14 Location -10/Subcaves Parts ------- > --- POWER (1) -------- Light Ion Engine > --- PROPULSION (2) --- (None) > --- UTILITY (2) ------ High-capacity Storage Unit Core Shielding > --- WEAPON (2) ------- (None) > --- INVENTORY (20) --- Light Nuclear Core Medium Matter Pod (100) Weight Redist. System Sensor Array Utility Shielding Utility Shielding Scrap Shield Shield Generator Shield Generator Beam Cannon Light Cannon Light Cannon Datajack Mining Claw Peak State ------------ > --- POWER ------------ Ion Engine > --- PROPULSION ------- Light Treads Light Treads > --- UTILITY ---------- High-capacity Storage Unit Seismic Detector > --- WEAPON ----------- Light Assault Rifle Light Assault Rifle > --- INVENTORY -------- Light Ion Engine Light Ion Engine Light Nuclear Core Light Treads Light Treads Aluminum Leg Aluminum Leg Aluminum Leg High-capacity Storage Unit Medium Matter Pod Weight Redist. System Sensor Array Seismic Detector Core Shielding Beam Cannon Light Assault Rifle Light Assault Rifle [Rating: 9] Favorites ----------- Power Light Ion Engine Engine Light Ion Engine Propulsion Light Treads Treads Light Treads Leg Aluminum Leg Utility High-capacity Storage Unit Device Seismic Detector Storage High-capacity Storage Unit Protection Core Shielding Weapon Light Assault Rifle Ballistic Gun Light Assault Rifle Slashing Weapon Mining Claw Build | -11 -10 -10 ------- Run | Yrd Mat Sub Slots Evolved . | . . . Power . | . . . Propulsion . | . . . Utility . | . . . Weapon . | . . . Parts Attached 24 | 8 11 5 Power 5 | 1 3 1 Engine 5 | 1 3 1 Core . | . . . Reactor . | . . . Propulsion 5 | 2 1 2 Treads 4 | 1 1 2 Leg 1 | 1 . . Wheel . | . . . Hover . | . . . Flight . | . . . Utility 7 | 3 2 2 Device 1 | 1 . . Storage 4 | 2 2 . Processor . | . . . Hackware . | . . . Protection 2 | . . 2 Artifact . | . . . Weapon 7 | 2 5 . Energy Gun . | . . . Energy Cannon . | . . . Ballistic Gun 6 | 2 4 . Ballistic Cannon . | . . . Launcher . | . . . Special Weapon . | . . . Impact Weapon . | . . . Slashing Weapon 1 | . 1 . Piercing Weapon . | . . . Special Melee Weapon . | . . . Unidentified Prototypes . | . . . Parts Lost 8 | . . 8 Power 1 | . . 1 Propulsion 4 | . . 4 Utility 1 | . . 1 Weapon 2 | . . 2 Highest Loss Streak 8 | . . 8 To Critical Strikes 1 | . . 1 Average Slot Usage (%) 98 | . 100 85 Engine 13 | . 14 11 Treads 27 | . 27 23 Device 13 | . 14 8 Storage 14 | . 14 14 Ballistic Gun 26 | . 26 21 Naked Turns . | . . . Heaviest Build 50 | 15 50 50 Greatest Support 40 | 20 40 40 Greatest Overweight (x) 14 | 4 1 14 Average Overweight (x) 1 | 1 . 1 Largest Inventory Capacity 20 | 8 20 20 Average Capacity 18 | 7 19 20 Most Carried 20 | 7 20 20 Average Carried 15 | 4 16 18 Final Capacity 20 | 8 20 20 Final Carried 20 | 6 20 15 Class Distribution -------------------- 100% | Mutant Dominant Class ---------------- Mutant | -10/Materials Mutant | -10/Subcaves Resources | -11 -10 -10 ----------- Run | Yrd Mat Sub Matter Collected 704 | 298 406 . Remotely . | . . . Salvage Created 809 | 129 680 . Parts 66 | 7 59 . Haulers Intercepted 1 | . 1 . Recyclers Shooed 1 | 1 . . Parts Field Recycled . | . . . Retrieved Matter . | . . . Parts Self-Destructed 1 | . . 1 Prevented . | . . . Kills | -11 -10 -10 ------- Run | Yrd Mat Sub Combat Hostiles Destroyed 14 | . 14 . Guns 14 | . 14 . Classes Destroyed 9 | 2 7 . Worker 1 | . 1 . Builder 1 | . 1 . Tunneler 2 | 2 . . Hauler 1 | . 1 . Recycler 2 | 1 1 . Operator 3 | . 3 . Watcher 2 | . 2 . Swarmer 6 | . 6 . Grunt 8 | . 8 . Best Kill Streak 6 | 2 6 . Combat Bots Only 6 | . 6 . Max Kills in Single Turn 1 | 1 1 . Gunslinging . | . . . Exploded . | . . . Melee . | . . . Uniques/NPCs Destroyed . | . . . Combat | -11 -10 -10 -------- Run | Yrd Mat Sub Hostile Shots Fired 157 | . 76 81 Missed 55 | . 23 32 Damage Taken 1471 | . 505 966 Core 255 | . 64 191 Absorbed by Shields . | . . . Redirected to Shielding 90 | . . 90 Core Remaining (%) 100 | 100 . . Volleys Fired 89 | 11 75 3 Largest 2 | 2 2 2 Hottest 40 | 40 40 40 Shots Fired 174 | 22 146 6 Gun 174 | 22 146 6 Cannon . | . . . Launcher . | . . . Special . | . . . Kinetic 174 | 22 146 6 Thermal . | . . . Explosive . | . . . Electromagnetic . | . . . Robot Hit Streak 14 | 5 14 7 Robot Miss Streak 4 | 2 4 . Penetration Max . | . . . Secondary Targets 4 | . 4 . Max Gunslinging Chain 1 | . 1 . Shots Hit Robots 108 | 14 88 6 Core Hits 52 | 5 46 1 Critical Kills . | . . . Critical Parts Destroyed 1 | 1 . . Critical Strikes 1 | 1 . . Destroy 1 | 1 . . Melee Attacks 1 | . 1 . Impact . | . . . Slashing 1 | . 1 . Piercing . | . . . Sneak Attacks . | . . . Combat Hostiles . | . . . Follow-up Attacks . | . . . Damage Inflicted 1018 | 114 831 73 Guns 1004 | 114 817 73 Cannons . | . . . Explosions . | . . . Melee . | . . . Ramming 14 | . 14 . Kinetic 1004 | 114 817 73 Thermal . | . . . Explosive . | . . . Electromagnetic . | . . . Impact . | . . . Slashing . | . . . Piercing . | . . . Highest Corruption . | . . . Average Corruption . | . . . Corruption Purged . | . . . Corruption Blocked . | . . . Overload Shots . | . . . Overflow Damage . | . . . Projectiles . | . . . Explosions . | . . . Melee . | . . . Knockbacks . | . . . Impact . | . . . Kinetic . | . . . Secondary . | . . . Self-Inflicted Damage . | . . . Shots . | . . . Rammed 4 | . 4 . Targets Rammed 5 | . 5 . Kicked . | . . . Crushed 1 | . 1 . Highest Temperature 12 | . 12 . Average Temperature 8 | . 8 . Received Heat Transfer 282 | . 138 144 Siege Activations . | . . . Robots Corrupted . | . . . Combat Hostiles . | . . . Parts Fried . | . . . Impact Corruptions . | . . . Robots Melted . | . . . Combat Hostiles . | . . . Parts Melted . | . . . Heat Transferred . | . . . Parts Sabotaged . | . . . Parts Stolen . | . . . Parts Stripped . | . . . Power Chain Reactions . | . . . Alert | -11 -10 -10 ------- Run | Yrd Mat Sub Peak Influence 221 | 15 221 . Initial 9 | . 9 . Average 30 | 8 31 . Maximum Alert Level 1 | . 1 . Low Security (%) 98 | 100 97 . Level 1 1 | . 2 . Level 2 . | . . . Level 3 . | . . . Level 4 . | . . . Level 5 . | . . . High Security . | . . . Max Security . | . . . Squads Dispatched 4 | . 4 . Investigation 1 | . 1 . Extermination . | . . . Reinforcement 3 | . 3 . Assault . | . . . Garrison . | . . . Intercept . | . . . Searches Triggered . | . . . Construction Impeded . | . . . Haulers Reinforced . | . . . Active Scanning Responses . | . . . Cargo Convoy Interrupts . | . . . Stealth | -11 -10 -10 --------- Run | Yrd Mat Sub Distress Signals 2 | . 2 . Communications Jammed . | . . . Distress Signals . | . . . Times Spotted 39 | . 25 14 Peak Tracking Total 10 | . 6 10 Tactical Retreats 1 | . . 1 Traps | -11 -10 -10 ------- Run | Yrd Mat Sub Traps Triggered . | . . . Indirectly . | . . . Trap Hack Attempts . | . . . Triggered . | . . . Disarmed . | . . . Reprogrammed . | . . . Reused . | . . . Traps Extracted . | . . . Installed . | . . . Triggered . | . . . Machines | -11 -10 -10 ---------- Run | Yrd Mat Sub Machines Disabled . | . . . Max in Single Turn . | . . . Machines Repaired . | . . . Machines Dismantled . | . . . Machines Sabotaged . | . . . Overloaded Fab Kills . | . . . Hacking | -11 -10 -10 --------- Run | Yrd Mat Sub Machines Accessed 5 | . 5 . Terminals 5 | . 5 . Fabricators . | . . . Repair Stations . | . . . Recycling Units . | . . . Scanalyzers . | . . . Garrison Access . | . . . Total Hacks 15 | . 15 . Successful 6 | . 6 . Failed 9 | . 9 . Catastrophic . | . . . Database Lockouts . | . . . Manual 6 | . 6 . Terminals 15 | . 15 . Fabricators . | . . . Repair Stations . | . . . Recycling Units . | . . . Scanalyzers . | . . . Garrison Access . | . . . Terminal Hacks 6 | . 6 . Alert Level 2 | . 2 . Unreport Threat 1 | . 1 . Locate Traps 2 | . 2 . Hauler Manifests 1 | . 1 . Fabricator Hacks . | . . . Repair Station Hacks . | . . . Recycling Unit Hacks . | . . . Scanalyzer . | . . . Garrison Access Hacks . | . . . Unauthorized Hacks . | . . . Terminals . | . . . Fabricators . | . . . Repair Stations . | . . . Recycling Units . | . . . Scanalyzers . | . . . Garrison Access . | . . . Data Cores Recovered . | . . . Used . | . . . Hacking Detections 5 | . 5 . Full Trace Events 2 | . 2 . Feedback Events . | . . . Feedback Blocked . | . . . Robot Schematics Acquired . | . . . Robots Built . | . . . Authchips . | . . . Time . | . . . Total Robot Build Rating . | . . . Part Schematics Acquired . | . . . Parts Built . | . . . Authchips . | . . . Time . | . . . Total Part Build Rating . | . . . Parts Repaired . | . . . Time . | . . . Parts Recycled . | . . . Recycled Matter . | . . . Retrieved Matter . | . . . Retrieved Components . | . . . Parts Scanalyzed . | . . . Part Schematics Acquired . | . . . Parts Damaged . | . . . Bothacking | -11 -10 -10 ------------ Run | Yrd Mat Sub Used RIF Installer . | . . . Robots Hacked . | . . . Non-combat . | . . . Combat . | . . . Robot Hacks Applied . | . . . Relay Couplers Released . | . . . Fabnet Peak Effective % . | . . . Robots Rewired . | . . . Allies Hacked . | . . . Hacks Repelled . | . . . Allies | -11 -10 -10 -------- Run | Yrd Mat Sub Total Allies . | . . . Largest Group . | . . . Highest-Rated Group . | . . . Highest-Rated Ally . | . . . Total Orders . | . . . Ally Attacks . | . . . Total Damage . | . . . Kills . | . . . Allies Corrupted . | . . . Allies Melted . | . . . Intel | -11 -10 -10 ------- Run | Yrd Mat Sub Robot Analysis Total . | . . . Derelict Logs Recovered . | . . . Drone Launches . | . . . Drone Recoveries . | . . . Exploration | -11 -10 -10 ------------- Run | Yrd Mat Sub Turns Passed 2464 | 174 2131 159 Spaces Moved 881 | 70 755 56 Core 46 | 45 . 1 Treads 835 | 25 755 55 Legs . | . . . Wheels . | . . . Hover . | . . . Flight . | . . . Fastest Speed 50 | 50 160 240 Average Speed 233 | 175 237 259 Slowest Speed 750 | 250 240 750 Overloaded Moves . | . . . Propulsion Burnouts . | . . . Robots Hopped . | . . . Cave-ins Triggered . | . . . Exploration Rate (%) 36 | 5 97 7 Regions Visited 2 Branch Regions 1 Pre-discovered Areas . | . . . Known Exits Taken . | . . . Unknown Exits Taken 2 | 1 1 . Scrap Searched . | . . . Spaces Dug 1 | . 1 . Terrain Destroyed 1 | . 1 . Melee 1 | . 1 . Projectile . | . . . AOE . | . . . Terrain Rammed . | . . . Walls Destroyed . | . . . Machines Disabled . | . . . Actions | -11 -10 -10 --------- Run | Yrd Mat Sub Total 1135 | 101 966 68 Wait 81 | . 81 . Move 879 | 69 754 56 Hop . | . . . Pick Up 35 | 10 24 1 Fast Attach 6 | 6 . . Attach 8 | 1 2 5 Detach . | . . . Swap 10 | 1 9 . Drop 21 | 3 15 3 Fire 89 | 11 75 3 Melee 1 | . 1 . Ram . | . . . Kick . | . . . Crush 5 | . 5 . Escape Stasis . | . . . Rewire . | . . . Trap . | . . . Miscellaneous . | . . . Route ------- -11/Scrapyard -10/Materials (discovered 5 exits: [*Mat x3] / [*Min] / [*Sub]) -10/Subcaves History --------- Turn | Location | Event 29 | -11/Scrapyard | Discovered new exit (range 15) 175 | -11/Scrapyard | Entered Materials 316 | -10/Materials | Build established: Mutant 615 | -10/Materials | Discovered new exit (range 8) 923 | -10/Materials | Discovered new exit (range 8) 1292 | -10/Materials | Discovered new exit (range 16) 1626 | -10/Materials | Discovered new exit (range 6) 1962 | -10/Materials | Discovered new exit (range 14) 2306 | -10/Materials | Entered Subcaves 2399 | -10/Subcaves | Ambushed by swarm of Subdwellers 2399 | -10/Subcaves | Ambushed by Subdwellers from Twisted Machinery 2399 | -10/Subcaves | Ambushed by Subdwellers from Twisted Machinery 2399 | -10/Subcaves | Ambushed by Subdwellers from Twisted Machinery 2401 | -10/Subcaves | Ambushed by Subdwellers from Twisted Machinery 2412 | -10/Subcaves | Ambushed by Subdwellers from Twisted Machinery 2424 | -10/Subcaves | Core integrity fell below 50% 2463 | -10/Subcaves | Core integrity fell below 20% 2465 | -10/Subcaves | Destroyed by 93-FDI(R) with Subdweller Machine Gun Last Messages --------------- 02405_ 4A-2IR(R) suffers critical hit (Destroy). 02405_ 4A-2IR(R) knocked back. 02408_ HV Slug penetrates 4A-2IR(R). 02408_ 4A-2IR(R) suffers critical hit (Destroy). 02408_ 4A-2IR(R) knocked back. 02409_ 6I-8TP(h) destroyed. 02409_ R5-2BC(R) destroyed. 02409_ Lgt. Treads destroyed. 02412_ 93-FDI(R) angrily emerges from the Twisted Machinery. 02413_ U8-3F9(R) affixes Scrap Shield Fragment to Scrap Shield. 02417_ 93-FDI(R) affixes Scrap Shield Fragment to Scrap Shield. 02419_ Weapon Shielding destroyed. 02420_ Assault Rifle destroyed. 02422_ 8B-LYY(R) affixes Scrap Shield Fragment to Scrap Shield. 02425_ Critical hit (Destroy). 02425_ Assault Rifle destroyed. 02429_ HV-97K(R) suffers critical hit (Destroy). 02435_ Lgt. Treads destroyed. 02438_ Ion Engine destroyed. 02460_ Lgt. Treads destroyed. Map ----- +----------------------------------------------------+ | ?????????????????????????????????????????????????? | | ?????????????????????????????????????????????????? | | ?????????????????????????????????????????????????? | | ?????????????????????????????????????????????????? | | ?????????????????????????????????????????????????? | | ?????????????????????????????????????????????????? | | ?????????????????????????????????????????????????? | | ?????????????????????????????????????????????????? | | ?????????????????????????????????????????????????? | | ?????????????????????????????????????????????????? | | ????????????????????????? ?????????????????????? | | ????????????????????????? #????????????????????? | | ????????????????????????? ##???????????????????? | | ????????????????????????? ????????????????????? | | ????????????????????????? ????????????????????? | | ????????????????????????? ????????????????????? | | ????????????????????????# ????????????????????? | | ????????????????????????# ?????????????????????? | | ????????????????????????# ?????????????????????? | | ???????????????????????? ?????????????????????? | | ???????????????????????? #?????#####???????????? | | ????????????????????????# #???? #???????????? | | ???????????????????????? ##??? #???????????? | | ???????????????????##???# #??? #???????????? | | ??????????????????## ??# ##?? #???????????? | | ??????????????????# ##@ #?? #???????????? | | ?????????????????## RRR"#?? #???????????? | | ?????????????????# " R"### #????????????? | | ?????????????????# "RR" #?????????????? | | ????????????????# ## "R"R #??????????????? | | ????????????????## ??## #??????????????? | | ?????????????????#????####### ""##??????????????? | | ???????????????????????????## ""#???????????????? | | ??????????????????????###### ""#???????????????? | | ??????????????????????# ""#???????????????? | | ?????##???????????????# ##???????????????? | | ???## #??????????????## #????????????????? | | #### #??????????????# ### ##????????????????? | | ## #??????????????# ##?####?????????????????? | | #??????????????# #?#####?????????????????? | | #?####?????????# ## #?????????????????? | | #?## ##???####?# #?????????????????? | | ### ##?## ####*[& ###?????????????????? | | ## ### ###! """"##??????????????????? | | ### ## # %!! #??????????????????? | | #?## %]%=%[* ##??????????????????? | | ???# ### *[!% = #???????????????????? | | ???## ##?###### ###%[[######???????????????????? | | ????#####???????###?#####????????????????????????? | | ?????????????????????????????????????????????????? | +----------------------------------------------------+ Best States ------------- Heat Dissipation 25 Energy Generation 10 Energy Capacity 250 Matter Stores 300 Matter Capacity 300 Sight Range 16 Terrain Scan Density 10 Core Shielding 20 Weapon Shielding 33 Evasion (%) 40 Recoil Reduction 2 Item Schematics ----------------- None Robot Schematics ------------------ None Fabricated ------------ Nothing Alien Tech Used ----------------- None Achievements -------------- None Challenges ------------ None Game ------ Seed TachyonDisruptorArchive Manual? 0 Play Time 00:16:53 Cumulative 23.0 hours Start 2024.05.16 @ 22:02:03 End 2024.05.16 @ 22:18:50 Sessions 1 Manual Loads 0 Difficulty Rogue Special Mode None Game No. 21 Rogue 21 Adventurer 0 Explorer 0 Win Type - Total 0 Types 0/0/0/0/0/0/0/0/0 Lore% 14 Gallery% 27 Achievement% 22 Wizard Run 0 Options --------- Layout 0 ASCII 0 Keyboard 0 Movement Mouse Keybinds 0 Fullscreen 1 Font 24/Smallcaps Map View 76x50 Zoom Use 0% Tactical HUD 1 Map Filters NONE Filters NONE Steam 1 RUN: b1c32c40-3cd3-413e-9ef2-a161bb14201e